[Event "Live Chess"]
[Site "Chess.com"]
[Date "2024.06.02"]
[Round "-"]
[White "TC2304"]
[Black "blunderabit"]
[Result "1-0"]
[WhiteElo "2322"]
[BlackElo "1766"]
[TimeControl "300"]
[EndTime "8:07:08 PDT"]
[Termination "TC2304 won on time"]

1. d4 {[%clk 0:04:56.2]} 1... d5 {[%clk 0:04:57.6]} 2. Nf3 {[%clk 0:04:51.7]}
2... Nf6 {[%clk 0:04:54.4]} 3. g3 {[%clk 0:04:51]} 3... b5 {[%clk 0:04:43.3]} 4.
Bg2 {[%clk 0:04:46.5]} 4... e6 {[%clk 0:04:38.5]} 5. O-O {[%clk 0:04:43.9]} 5...
Bb7 {[%clk 0:04:31.8]} 6. a4 {[%clk 0:04:39.4]} 6... b4 {[%clk 0:04:29.7]} 7.
Nbd2 {[%clk 0:04:37.4]} 7... Nbd7 {[%clk 0:04:23.9]} 8. Ne5 {[%clk 0:04:24.3]}
8... Be7 {[%clk 0:04:09.6]} 9. Ndf3 {[%clk 0:04:14]} 9... Ne4 {[%clk 0:03:57.7]}
10. Nxd7 {[%clk 0:04:05.6]} 10... Qxd7 {[%clk 0:03:55.1]} 11. Ne5 {[%clk
0:04:05.1]} 11... Qd8 {[%clk 0:03:50]} 12. a5 {[%clk 0:03:53]} 12... a6 {[%clk
0:03:45.2]} 13. f3 {[%clk 0:03:45.8]} 13... Nf6 {[%clk 0:03:42.5]} 14. Bd2
{[%clk 0:03:44]} 14... O-O {[%clk 0:03:38.7]} 15. Nd3 {[%clk 0:03:37.9]} 15...
Qd7 {[%clk 0:02:44.3]} 16. Bxb4 {[%clk 0:03:33.9]} 16... Bxb4 {[%clk 0:02:41.5]}
17. Nxb4 {[%clk 0:03:33.8]} 17... Qb5 {[%clk 0:02:40]} 18. Nd3 {[%clk
0:03:31.7]} 18... Nd7 {[%clk 0:02:27.4]} 19. b4 {[%clk 0:03:30]} 19... Bc6
{[%clk 0:02:14.5]} 20. f4 {[%clk 0:03:11.8]} 20... Qb7 {[%clk 0:02:03.2]} 21. c3
{[%clk 0:02:39.7]} 21... Bb5 {[%clk 0:02:00.1]} 22. e3 {[%clk 0:02:29.2]} 22...
Bxd3 {[%clk 0:01:36.8]} 23. Qxd3 {[%clk 0:02:29.1]} 23... Nf6 {[%clk 0:01:34.5]}
24. h3 {[%clk 0:02:23.8]} 24... h5 {[%clk 0:01:29.9]} 25. Bf3 {[%clk 0:02:22]}
25... g6 {[%clk 0:01:27.1]} 26. Kg2 {[%clk 0:02:21]} 26... Kg7 {[%clk 0:01:25]}
27. g4 {[%clk 0:02:20.4]} 27... hxg4 {[%clk 0:01:23]} 28. hxg4 {[%clk
0:02:19.5]} 28... Rh8 {[%clk 0:01:21.8]} 29. Rh1 {[%clk 0:02:17.4]} 29... Qc6
{[%clk 0:01:11.6]} 30. g5 {[%clk 0:02:13.8]} 30... Ne8 {[%clk 0:00:55.7]} 31.
Rxh8 {[%clk 0:02:11.1]} 31... Kxh8 {[%clk 0:00:55.1]} 32. Kg3 {[%clk 0:02:06.7]}
32... Nd6 {[%clk 0:00:51.8]} 33. Qd2 {[%clk 0:02:00.7]} 33... Nf5+ {[%clk
0:00:47.2]} 34. Kg4 {[%clk 0:01:54.2]} 34... Kg7 {[%clk 0:00:46.4]} 35. Rh1
{[%clk 0:01:52.4]} 35... Qc4 {[%clk 0:00:35.1]} 36. Be2 {[%clk 0:01:46.4]} 36...
Qb3 {[%clk 0:00:32.4]} 37. Bd3 {[%clk 0:01:45.2]} 37... Rg8 {[%clk 0:00:16.3]}
38. Kf3 {[%clk 0:01:39.7]} 38... Rh8 {[%clk 0:00:13]} 39. Rxh8 {[%clk
0:01:37.7]} 39... Kxh8 {[%clk 0:00:12.5]} 40. Bxa6 {[%clk 0:01:30.3]} 40... Qb1
{[%clk 0:00:08.5]} 41. Qh2+ {[%clk 0:01:17.3]} 41... Kg8 {[%clk 0:00:05.5]} 42.
Be2 {[%clk 0:01:12.8]} 42... Qc1 {[%clk 0:00:01.2]} 43. Qf2 {[%clk 0:00:57.4]}
1-0

[Event "Live Chess"]
[Site "Chess.com"]
[Date "2024.06.02"]
[Round "-"]
[White "RichardABates"]
[Black "Hazban"]
[Result "1-0"]
[WhiteElo "2370"]
[BlackElo "2053"]
[TimeControl "300"]
[EndTime "8:07:22 PDT"]
[Termination "RichardABates won by checkmate"]

1. d4 {[%clk 0:04:58]} 1... Nf6 {[%clk 0:04:58.8]} 2. Nf3 {[%clk 0:04:56.1]}
2... d6 {[%clk 0:04:55.9]} 3. c4 {[%clk 0:04:54.6]} 3... g6 {[%clk 0:04:53.9]}
4. g3 {[%clk 0:04:53.2]} 4... Bg7 {[%clk 0:04:53.1]} 5. Bg2 {[%clk 0:04:52.3]}
5... c6 {[%clk 0:04:52.6]} 6. O-O {[%clk 0:04:50.9]} 6... O-O {[%clk 0:04:51.2]}
7. Nc3 {[%clk 0:04:49.6]} 7... Bg4 {[%clk 0:04:48.9]} 8. h3 {[%clk 0:04:45.2]}
8... Bxf3 {[%clk 0:04:47.9]} 9. Bxf3 {[%clk 0:04:44.1]} 9... Nbd7 {[%clk
0:04:47.1]} 10. e4 {[%clk 0:04:41.2]} 10... e5 {[%clk 0:04:46.1]} 11. d5 {[%clk
0:04:39.7]} 11... c5 {[%clk 0:04:43]} 12. g4 {[%clk 0:04:33.1]} 12... a6 {[%clk
0:04:41.3]} 13. Be3 {[%clk 0:04:31]} 13... Rb8 {[%clk 0:04:38.3]} 14. a4 {[%clk
0:04:29.2]} 14... Nb6 {[%clk 0:04:37]} 15. b3 {[%clk 0:04:27.4]} 15... Nfd7
{[%clk 0:04:25.5]} 16. g5 {[%clk 0:04:24.7]} 16... f5 {[%clk 0:04:22.4]} 17. h4
{[%clk 0:04:21.6]} 17... f4 {[%clk 0:04:19.8]} 18. Bd2 {[%clk 0:04:20.3]} 18...
Kh8 {[%clk 0:04:16.6]} 19. Kg2 {[%clk 0:04:12.6]} 19... Rf7 {[%clk 0:03:58.6]}
20. a5 {[%clk 0:04:10.6]} 20... Nc8 {[%clk 0:03:56.5]} 21. Rh1 {[%clk
0:04:08.3]} 21... Nf8 {[%clk 0:03:55]} 22. Bg4 {[%clk 0:04:01.9]} 22... Ne7
{[%clk 0:03:51.8]} 23. h5 {[%clk 0:03:58.7]} 23... Kg8 {[%clk 0:03:48.8]} 24.
Be6 {[%clk 0:03:50.7]} 24... Nxe6 {[%clk 0:03:47.6]} 25. dxe6 {[%clk 0:03:49.5]}
25... Rf8 {[%clk 0:03:46.1]} 26. Qg4 {[%clk 0:03:44.9]} 26... Qe8 {[%clk
0:03:28.7]} 27. Nd5 {[%clk 0:03:42.4]} 27... Nxd5 {[%clk 0:03:26.1]} 28. cxd5
{[%clk 0:03:39.2]} 28... gxh5 {[%clk 0:03:16.1]} 29. Rxh5 {[%clk 0:03:37.1]}
29... f3+ {[%clk 0:03:09.5]} 30. Kg3 {[%clk 0:03:31.8]} 30... Qg6 {[%clk
0:03:07]} 31. Rah1 {[%clk 0:03:28.1]} 31... Rf4 {[%clk 0:02:58.7]} 32. Bxf4
{[%clk 0:03:21.9]} 32... exf4+ {[%clk 0:02:57.8]} 33. Kxf3 {[%clk 0:03:21]}
33... b6 {[%clk 0:02:54.4]} 34. Qf5 {[%clk 0:03:10.6]} 34... bxa5 {[%clk
0:02:49.3]} 35. Rxh7 {[%clk 0:03:08.7]} 35... Rxb3+ {[%clk 0:02:46.8]} 36. Kg4
{[%clk 0:03:06.1]} 36... Qxf5+ {[%clk 0:02:41.8]} 37. exf5 {[%clk 0:03:03.9]}
37... Be5 {[%clk 0:02:32.7]} 38. f6 {[%clk 0:03:00.2]} 38... Rb4 {[%clk
0:02:30]} 39. Rh8# {[%clk 0:02:58.1]} 1-0

[Event "Live Chess"]
[Site "Chess.com"]
[Date "2024.06.02"]
[Round "-"]
[White "Cruiseylee78"]
[Black "silunn"]
[Result "0-1"]
[WhiteElo "1684"]
[BlackElo "2066"]
[TimeControl "300"]
[EndTime "8:07:35 PDT"]
[Termination "silunn won by resignation"]

1. d4 {[%clk 0:04:59.3]} 1... e6 {[%clk 0:04:59.6]} 2. Bf4 {[%clk 0:04:58.1]}
2... d6 {[%clk 0:04:58]} 3. e3 {[%clk 0:04:57.5]} 3... Nd7 {[%clk 0:04:57.5]} 4.
Bd3 {[%clk 0:04:56.1]} 4... e5 {[%clk 0:04:54.6]} 5. Bg3 {[%clk 0:04:46.1]} 5...
g6 {[%clk 0:04:52.2]} 6. Nd2 {[%clk 0:04:42]} 6... Bg7 {[%clk 0:04:51.4]} 7. c3
{[%clk 0:04:40.6]} 7... f5 {[%clk 0:04:47.5]} 8. Qc2 {[%clk 0:04:36.4]} 8...
Ngf6 {[%clk 0:04:43.9]} 9. O-O-O {[%clk 0:04:31.1]} 9... c6 {[%clk 0:04:39.7]}
10. Bh4 {[%clk 0:04:27.1]} 10... Qa5 {[%clk 0:04:33.2]} 11. Kb1 {[%clk
0:04:24.9]} 11... b5 {[%clk 0:04:26]} 12. e4 {[%clk 0:04:20.3]} 12... fxe4
{[%clk 0:04:16.7]} 13. Nxe4 {[%clk 0:04:18.7]} 13... Nxe4 {[%clk 0:04:12.6]} 14.
Bxe4 {[%clk 0:04:18.6]} 14... O-O {[%clk 0:03:49.1]} 15. Bxc6 {[%clk 0:04:13.6]}
15... Nb6 {[%clk 0:03:30.4]} 16. Bxa8 {[%clk 0:04:09.7]} 16... Nxa8 {[%clk
0:03:27.7]} 17. Be7 {[%clk 0:04:08.1]} 17... Rf7 {[%clk 0:03:00.3]} 18. Bxd6
{[%clk 0:04:04.5]} 18... Bf5 {[%clk 0:02:50.6]} 19. Rd3 {[%clk 0:03:57.2]} 19...
Qb6 {[%clk 0:02:32.6]} 20. Bc5 {[%clk 0:03:50]} 20... Qc6 {[%clk 0:02:28.9]} 21.
Nf3 {[%clk 0:03:42.7]} 21... e4 {[%clk 0:02:26.6]} 22. Ne5 {[%clk 0:03:40]}
22... Bxe5 {[%clk 0:02:24.6]} 23. Re3 {[%clk 0:03:32.4]} 23... Bf4 {[%clk
0:02:21]} 24. g3 {[%clk 0:03:06.9]} 24... Bxe3 {[%clk 0:02:08.7]} 25. fxe3
{[%clk 0:03:06.8]} 25... Nb6 {[%clk 0:02:06.2]} 26. Rf1 {[%clk 0:03:02]} 26...
Nc4 {[%clk 0:02:01]} 27. Qe2 {[%clk 0:02:49.3]} 27... Bg4 {[%clk 0:01:57.4]} 28.
Qg2 {[%clk 0:02:38.4]} 28... Rxf1+ {[%clk 0:01:55.2]} 29. Qxf1 {[%clk
0:02:37.5]} 29... Nd2+ {[%clk 0:01:54.4]} 0-1

[Event "Live Chess"]
[Site "Chess.com"]
[Date "2024.06.02"]
[Round "-"]
[White "NAZRIZ1977"]
[Black "missedJariChance"]
[Result "1-0"]
[WhiteElo "2075"]
[BlackElo "1364"]
[TimeControl "300"]
[EndTime "8:07:45 PDT"]
[Termination "NAZRIZ1977 won by resignation"]

1. d4 {[%clk 0:04:56.6]} 1... d5 {[%clk 0:04:57.3]} 2. c4 {[%clk 0:04:55.7]}
2... e6 {[%clk 0:04:53.2]} 3. Nc3 {[%clk 0:04:54.8]} 3... Nf6 {[%clk 0:04:52]}
4. Bg5 {[%clk 0:04:53.3]} 4... Be7 {[%clk 0:04:50.4]} 5. e3 {[%clk 0:04:52.6]}
5... c5 {[%clk 0:04:48.2]} 6. cxd5 {[%clk 0:04:50.6]} 6... Nxd5 {[%clk
0:04:46.5]} 7. Bxe7 {[%clk 0:04:49.4]} 7... Nxe7 {[%clk 0:04:45.2]} 8. dxc5
{[%clk 0:04:47.2]} 8... O-O {[%clk 0:04:39.6]} 9. Qxd8 {[%clk 0:04:45.1]} 9...
Rxd8 {[%clk 0:04:38.5]} 10. Nf3 {[%clk 0:04:43.7]} 10... Nbc6 {[%clk 0:04:36.4]}
11. a3 {[%clk 0:04:42.6]} 11... e5 {[%clk 0:04:31.8]} 12. b4 {[%clk 0:04:40.9]}
12... Ng6 {[%clk 0:04:29]} 13. Bc4 {[%clk 0:04:34.4]} 13... Bg4 {[%clk
0:04:14.4]} 14. Ng5 {[%clk 0:04:28.2]} 14... Rd7 {[%clk 0:03:53]} 15. f3 {[%clk
0:04:23.6]} 15... h6 {[%clk 0:03:20]} 16. Nxf7 {[%clk 0:04:19.7]} 16... Rxf7
{[%clk 0:03:13.1]} 17. fxg4 {[%clk 0:04:18.6]} 17... Rd8 {[%clk 0:02:55.2]} 18.
Rf1 {[%clk 0:04:16.8]} 18... Rf8 {[%clk 0:02:50.9]} 19. Ne4 {[%clk 0:04:15]}
19... Nh4 {[%clk 0:02:43.2]} 20. Nd6 {[%clk 0:04:12.8]} 20... Nxg2+ {[%clk
0:02:40.4]} 21. Ke2 {[%clk 0:04:11]} 1-0

[Event "Live Chess"]
[Site "Chess.com"]
[Date "2024.06.02"]
[Round "-"]
[White "Ocelot32"]
[Black "kylet1990"]
[Result "1-0"]
[WhiteElo "1386"]
[BlackElo "766"]
[TimeControl "300"]
[EndTime "8:08:16 PDT"]
[Termination "Ocelot32 won by checkmate"]

1. e4 {[%clk 0:04:57.5]} 1... c6 {[%clk 0:04:58.9]} 2. d4 {[%clk 0:04:55.7]}
2... d5 {[%clk 0:04:57.9]} 3. Nc3 {[%clk 0:04:53.9]} 3... dxe4 {[%clk
0:04:56.7]} 4. Nxe4 {[%clk 0:04:52.5]} 4... Bf5 {[%clk 0:04:56.4]} 5. Ng3 {[%clk
0:04:49.4]} 5... Bg6 {[%clk 0:04:54]} 6. Nf3 {[%clk 0:04:48.3]} 6... e6 {[%clk
0:04:52.9]} 7. Bd3 {[%clk 0:04:46.9]} 7... Bd6 {[%clk 0:04:47.5]} 8. O-O {[%clk
0:04:43.5]} 8... Nf6 {[%clk 0:04:45.8]} 9. c3 {[%clk 0:04:42]} 9... Qd7 {[%clk
0:04:40.8]} 10. Bg5 {[%clk 0:04:39.2]} 10... Be7 {[%clk 0:04:36.5]} 11. Re1
{[%clk 0:04:37.3]} 11... O-O {[%clk 0:04:29.4]} 12. Ne5 {[%clk 0:04:32.3]} 12...
Qd8 {[%clk 0:04:25.2]} 13. Bxg6 {[%clk 0:04:27]} 13... fxg6 {[%clk 0:04:23.3]}
14. Bxf6 {[%clk 0:04:16.4]} 14... gxf6 {[%clk 0:04:20.7]} 15. Ng4 {[%clk
0:04:15.8]} 15... Nd7 {[%clk 0:04:13.4]} 16. Rxe6 {[%clk 0:04:11]} 16... Kg7
{[%clk 0:04:06.8]} 17. Qe2 {[%clk 0:04:09.1]} 17... Rf7 {[%clk 0:04:00.4]} 18.
Re1 {[%clk 0:04:06.9]} 18... Kf8 {[%clk 0:03:52.1]} 19. Nh6 {[%clk 0:03:57.7]}
19... Rg7 {[%clk 0:03:47.2]} 20. c4 {[%clk 0:03:26.7]} 20... c5 {[%clk
0:03:45.2]} 21. d5 {[%clk 0:03:25.3]} 21... f5 {[%clk 0:03:28.3]} 22. d6 {[%clk
0:03:01.5]} 22... f4 {[%clk 0:03:18.9]} 23. Ne4 {[%clk 0:02:48.8]} 23... Bg5
{[%clk 0:03:15.4]} 24. Nxg5 {[%clk 0:02:45.4]} 24... Qxg5 {[%clk 0:03:13.5]} 25.
Re8+ {[%clk 0:02:39.7]} 25... Rxe8 {[%clk 0:03:11.6]} 26. Qxe8# {[%clk
0:02:38.4]} 1-0

[Event "Live Chess"]
[Site "Chess.com"]
[Date "2024.06.02"]
[Round "-"]
[White "ameetghasi100"]
[Black "lyricalschemes"]
[Result "1-0"]
[WhiteElo "2757"]
[BlackElo "2205"]
[TimeControl "300"]
[EndTime "8:08:17 PDT"]
[Termination "ameetghasi100 won by resignation"]

1. c4 {[%clk 0:04:59.2]} 1... e5 {[%clk 0:04:54.6]} 2. Nc3 {[%clk 0:04:58.4]}
2... Nf6 {[%clk 0:04:48.9]} 3. e3 {[%clk 0:04:57.4]} 3... c6 {[%clk 0:04:47.8]}
4. d4 {[%clk 0:04:55.8]} 4... e4 {[%clk 0:04:43.6]} 5. d5 {[%clk 0:04:54.3]}
5... Bb4 {[%clk 0:04:39]} 6. Ne2 {[%clk 0:04:45.3]} 6... O-O {[%clk 0:04:30.6]}
7. a3 {[%clk 0:04:43.4]} 7... Bxc3+ {[%clk 0:04:27.4]} 8. Nxc3 {[%clk
0:04:43.1]} 8... Re8 {[%clk 0:04:26]} 9. d6 {[%clk 0:04:41.4]} 9... c5 {[%clk
0:04:16]} 10. g4 {[%clk 0:04:39.6]} 10... Nc6 {[%clk 0:04:10]} 11. g5 {[%clk
0:04:39.1]} 11... Ne5 {[%clk 0:04:03.4]} 12. gxf6 {[%clk 0:04:38.4]} 12... Nf3+
{[%clk 0:04:02.2]} 13. Ke2 {[%clk 0:04:37.5]} 13... Qxf6 {[%clk 0:04:01.5]} 14.
Bg2 {[%clk 0:04:36.6]} 14... Ng5 {[%clk 0:03:59.1]} 15. h4 {[%clk 0:04:32.8]}
15... Nf3 {[%clk 0:03:56]} 16. Nxe4 {[%clk 0:04:32.2]} 16... Rxe4 {[%clk
0:03:54.4]} 17. Bxf3 {[%clk 0:04:31.5]} 17... Rxc4 {[%clk 0:03:53.6]} 18. Qd3
{[%clk 0:04:26.4]} 18... Rxh4 {[%clk 0:03:50.9]} 19. Rxh4 {[%clk 0:04:24.2]}
19... Qxh4 {[%clk 0:03:50.5]} 20. Bd2 {[%clk 0:04:22.1]} 20... c4 {[%clk
0:03:42]} 21. Qe4 {[%clk 0:04:21]} 21... Qxe4 {[%clk 0:03:39.8]} 22. Bxe4 {[%clk
0:04:20.2]} 1-0

[Event "Live Chess"]
[Site "Chess.com"]
[Date "2024.06.02"]
[Round "-"]
[White "V1nas"]
[Black "McCarthyStone"]
[Result "0-1"]
[WhiteElo "1319"]
[BlackElo "2464"]
[TimeControl "300"]
[EndTime "8:08:18 PDT"]
[Termination "McCarthyStone won by resignation"]

1. d4 {[%clk 0:04:56.4]} 1... Nf6 {[%clk 0:04:57.1]} 2. Nf3 {[%clk 0:04:56]}
2... g6 {[%clk 0:04:56.5]} 3. g3 {[%clk 0:04:55.6]} 3... Bg7 {[%clk 0:04:56.1]}
4. Bg2 {[%clk 0:04:55.3]} 4... O-O {[%clk 0:04:56]} 5. O-O {[%clk 0:04:53.9]}
5... c6 {[%clk 0:04:54.8]} 6. b3 {[%clk 0:04:53.2]} 6... a5 {[%clk 0:04:53.3]}
7. a3 {[%clk 0:04:51.3]} 7... a4 {[%clk 0:04:52.6]} 8. Bb2 {[%clk 0:04:49.5]}
8... axb3 {[%clk 0:04:51.4]} 9. c4 {[%clk 0:04:47.8]} 9... d5 {[%clk 0:04:51.3]}
10. Qxb3 {[%clk 0:04:42.6]} 10... dxc4 {[%clk 0:04:49.9]} 11. Qxc4 {[%clk
0:04:38.3]} 11... Be6 {[%clk 0:04:49]} 12. Qc2 {[%clk 0:04:23.5]} 12... Bf5
{[%clk 0:04:46.1]} 13. Qc1 {[%clk 0:04:21]} 13... Nbd7 {[%clk 0:04:42.2]} 14. e3
{[%clk 0:04:19.4]} 14... Nb6 {[%clk 0:04:40.6]} 15. Nbd2 {[%clk 0:04:15.1]}
15... Na4 {[%clk 0:04:39.1]} 16. Rb1 {[%clk 0:04:06.9]} 16... Bxb1 {[%clk
0:04:37.6]} 17. Qxb1 {[%clk 0:04:05.4]} 17... Qb6 {[%clk 0:04:36.2]} 18. Nc4
{[%clk 0:04:00.7]} 18... Qb3 {[%clk 0:04:32.8]} 19. Nfd2 {[%clk 0:03:56]} 19...
Qb5 {[%clk 0:04:28.8]} 20. Qc2 {[%clk 0:03:41]} 20... Nxb2 {[%clk 0:04:21.9]}
21. Nxb2 {[%clk 0:03:37.4]} 21... Rxa3 {[%clk 0:04:20.7]} 22. Rb1 {[%clk
0:03:33.8]} 22... Rfa8 {[%clk 0:04:18.2]} 23. Bf1 {[%clk 0:03:32.6]} 23... Qf5
{[%clk 0:04:09.9]} 24. e4 {[%clk 0:03:22.1]} 24... Qd7 {[%clk 0:04:08.7]} 25. e5
{[%clk 0:02:45.9]} 25... Nd5 {[%clk 0:04:03]} 26. Nbc4 {[%clk 0:02:35.2]} 26...
Ra1 {[%clk 0:03:58.3]} 27. Bd3 {[%clk 0:02:22.8]} 27... b5 {[%clk 0:03:48.6]}
28. Ne3 {[%clk 0:02:03.4]} 28... Nb4 {[%clk 0:03:44.7]} 29. Qc3 {[%clk
0:01:57.4]} 29... Rxb1+ {[%clk 0:03:41.3]} 30. Nxb1 {[%clk 0:01:55.3]} 30...
Nxd3 {[%clk 0:03:39]} 31. Qxd3 {[%clk 0:01:54]} 31... Bxe5 {[%clk 0:03:38.1]}
32. Kg2 {[%clk 0:01:50.8]} 32... Qxd4 {[%clk 0:03:36.7]} 33. Qb3 {[%clk
0:01:45.4]} 33... Ra1 {[%clk 0:03:22.4]} 34. Na3 {[%clk 0:01:31.1]} 34... Qa4
{[%clk 0:03:21]} 35. Qd3 {[%clk 0:01:13.1]} 35... Rxa3 {[%clk 0:03:07.3]} 36.
Qd8+ {[%clk 0:01:11.6]} 36... Kg7 {[%clk 0:03:06.3]} 37. Qxe7 {[%clk 0:01:08.1]}
37... Qe4+ {[%clk 0:03:04.5]} 38. Kh3 {[%clk 0:01:00.8]} 38... Rxe3 {[%clk
0:03:01]} 39. fxe3 {[%clk 0:00:56.2]} 39... Qxe3 {[%clk 0:03:00.9]} 40. Qc5
{[%clk 0:00:53.2]} 0-1

[Event "Live Chess"]
[Site "Chess.com"]
[Date "2024.06.02"]
[Round "-"]
[White "booktrunk"]
[Black "LL220284LL"]
[Result "0-1"]
[WhiteElo "1491"]
[BlackElo "2468"]
[TimeControl "300"]
[EndTime "8:08:22 PDT"]
[Termination "LL220284LL won by resignation"]

1. d4 {[%clk 0:04:53]} 1... g6 {[%clk 0:04:58.4]} 2. Nc3 {[%clk 0:04:46.6]} 2...
Bg7 {[%clk 0:04:57.2]} 3. Bf4 {[%clk 0:04:46]} 3... d6 {[%clk 0:04:56.1]} 4. e4
{[%clk 0:04:43.8]} 4... Nc6 {[%clk 0:04:55.1]} 5. e5 {[%clk 0:04:42.5]} 5...
dxe5 {[%clk 0:04:52.1]} 6. dxe5 {[%clk 0:04:41.5]} 6... Qxd1+ {[%clk 0:04:51.5]}
7. Rxd1 {[%clk 0:04:38.3]} 7... a6 {[%clk 0:04:42.3]} 8. Nf3 {[%clk 0:04:33.3]}
8... Bg4 {[%clk 0:04:39.9]} 9. Be2 {[%clk 0:04:22.8]} 9... Rd8 {[%clk
0:04:32.8]} 10. Rxd8+ {[%clk 0:04:20.3]} 10... Kxd8 {[%clk 0:04:32.7]} 11. O-O
{[%clk 0:04:18.5]} 11... Kc8 {[%clk 0:04:31.1]} 12. h3 {[%clk 0:04:15]} 12...
Bxf3 {[%clk 0:04:29.7]} 13. Bxf3 {[%clk 0:04:13.2]} 13... Nxe5 {[%clk
0:04:29.2]} 14. Re1 {[%clk 0:04:10.9]} 14... Nxf3+ {[%clk 0:04:27.7]} 15. gxf3
{[%clk 0:04:08.9]} 15... e6 {[%clk 0:04:26.7]} 16. Be5 {[%clk 0:04:06.8]} 16...
Bxe5 {[%clk 0:04:25.4]} 17. Rxe5 {[%clk 0:04:05.9]} 17... Ne7 {[%clk 0:04:25.1]}
18. Re4 {[%clk 0:04:03.2]} 18... Rd8 {[%clk 0:04:23.1]} 19. Kg2 {[%clk
0:04:00.7]} 19... Nf5 {[%clk 0:04:19.6]} 20. Re2 {[%clk 0:03:58]} 20... Rd4
{[%clk 0:04:14.9]} 21. Ne4 {[%clk 0:03:55.8]} 21... b6 {[%clk 0:04:09.1]} 22. c3
{[%clk 0:03:54]} 22... Rd1 {[%clk 0:04:07.4]} 23. a3 {[%clk 0:03:51.9]} 23...
Kb7 {[%clk 0:04:04.6]} 24. Nf6 {[%clk 0:03:50.3]} 24... h5 {[%clk 0:04:03.1]}
25. f4 {[%clk 0:03:45.1]} 25... Rd3 {[%clk 0:03:59.4]} 26. Ne4 {[%clk
0:03:42.1]} 26... Nh4+ {[%clk 0:03:57.1]} 27. Kh2 {[%clk 0:03:38.4]} 27... Rf3
{[%clk 0:03:56.2]} 28. Re3 {[%clk 0:03:26.4]} 28... Rxf4 {[%clk 0:03:52.9]} 29.
Kg3 {[%clk 0:03:24.3]} 29... e5 {[%clk 0:03:51.9]} 30. Ng5 {[%clk 0:03:20.8]}
30... Nf5+ {[%clk 0:03:50.7]} 0-1

[Event "Live Chess"]
[Site "Chess.com"]
[Date "2024.06.02"]
[Round "-"]
[White "DavrosLight"]
[Black "willc-h99"]
[Result "0-1"]
[WhiteElo "802"]
[BlackElo "2597"]
[TimeControl "300"]
[EndTime "8:08:24 PDT"]
[Termination "willc-h99 won by checkmate"]

1. e4 {[%clk 0:04:59.3]} 1... d5 {[%clk 0:04:57.6]} 2. exd5 {[%clk 0:04:57.8]}
2... Qxd5 {[%clk 0:04:57.5]} 3. Nf3 {[%clk 0:04:56.2]} 3... Bg4 {[%clk
0:04:55.8]} 4. Nc3 {[%clk 0:04:54.3]} 4... Qd7 {[%clk 0:04:53.9]} 5. h3 {[%clk
0:04:49.3]} 5... Bh5 {[%clk 0:04:52.1]} 6. g4 {[%clk 0:04:47.5]} 6... Bg6 {[%clk
0:04:50]} 7. d4 {[%clk 0:04:41.9]} 7... Nc6 {[%clk 0:04:35.5]} 8. Ne5 {[%clk
0:04:34.4]} 8... Nxe5 {[%clk 0:04:33.6]} 9. dxe5 {[%clk 0:04:33]} 9... Qxd1+
{[%clk 0:04:31]} 10. Nxd1 {[%clk 0:04:31.9]} 10... Bxc2 {[%clk 0:04:28.6]} 11.
Ne3 {[%clk 0:04:25.7]} 11... Be4 {[%clk 0:04:26.2]} 12. Bg2 {[%clk 0:04:19.3]}
12... Bxg2 {[%clk 0:04:24.2]} 13. Nxg2 {[%clk 0:04:18.6]} 13... e6 {[%clk
0:04:22.6]} 14. O-O {[%clk 0:04:16.3]} 14... O-O-O {[%clk 0:04:16.1]} 15. Be3
{[%clk 0:04:12.5]} 15... Kb8 {[%clk 0:04:08.5]} 16. a4 {[%clk 0:04:05.1]} 16...
Ne7 {[%clk 0:04:07.3]} 17. Nf4 {[%clk 0:04:01.9]} 17... Nd5 {[%clk 0:04:04.7]}
18. Nxd5 {[%clk 0:03:58.8]} 18... Rxd5 {[%clk 0:04:04.6]} 19. f4 {[%clk
0:03:54.6]} 19... Rd3 {[%clk 0:03:59.7]} 20. Bf2 {[%clk 0:03:49.7]} 20... Bb4
{[%clk 0:03:55.4]} 21. Kg2 {[%clk 0:03:37.1]} 21... Rhd8 {[%clk 0:03:54.5]} 22.
a5 {[%clk 0:03:26.6]} 22... a6 {[%clk 0:03:43.4]} 23. Ra4 {[%clk 0:03:22.9]}
23... Rb3 {[%clk 0:03:33.1]} 24. f5 {[%clk 0:03:07.6]} 24... Rxb2 {[%clk
0:03:23.4]} 25. fxe6 {[%clk 0:02:54.6]} 25... fxe6 {[%clk 0:03:23]} 26. Kg1
{[%clk 0:02:43.5]} 26... c5 {[%clk 0:02:45.6]} 27. Raa1 {[%clk 0:02:41.6]} 27...
Rd3 {[%clk 0:02:37.6]} 28. h4 {[%clk 0:02:25.9]} 28... Kc7 {[%clk 0:02:35.4]}
29. g5 {[%clk 0:02:05.9]} 29... Kc6 {[%clk 0:02:30.3]} 30. Rac1 {[%clk
0:01:57.1]} 30... Re2 {[%clk 0:02:10.1]} 31. Rc4 {[%clk 0:01:37.1]} 31... Kb5
{[%clk 0:02:04.4]} 32. Rf4 {[%clk 0:01:15.8]} 32... Rd7 {[%clk 0:02:03.1]} 33.
Rb1 {[%clk 0:01:05.3]} 33... Kxa5 {[%clk 0:01:53.7]} 34. Bxc5 {[%clk 0:00:53.9]}
34... Bxc5+ {[%clk 0:01:52.1]} 35. Kf1 {[%clk 0:00:46.2]} 35... Rh2 {[%clk
0:01:44.8]} 36. Ra1+ {[%clk 0:00:39.7]} 36... Kb6 {[%clk 0:01:42.6]} 37. Rb1+
{[%clk 0:00:35.5]} 37... Ka7 {[%clk 0:01:39.6]} 38. Rb3 {[%clk 0:00:19.4]} 38...
Rd1# {[%clk 0:01:30.7]} 0-1